[Event "Live Chess"]
[Site "Chess.com"]
[Date "2023.05.20"]
[Round "-"]
[White "f4nomore"]
[Black "lucaskk818"]
[Result "0-1"]
[WhiteElo "1360"]
[BlackElo "1896"]
[TimeControl "300"]
[EndTime "11:32:46 PDT"]
[Termination "lucaskk818 won on time"]

1. d4 {[%clk 0:04:58.3]} 1... Nf6 {[%clk 0:04:57.5]} 2. Bg5 {[%clk 0:04:56]}
2... e6 {[%clk 0:04:54.7]} 3. e3 {[%clk 0:04:50]} 3... c5 {[%clk 0:04:53.9]} 4.
c3 {[%clk 0:04:48.3]} 4... Be7 {[%clk 0:04:46.9]} 5. Ne2 {[%clk 0:04:41.7]} 5...
Qb6 {[%clk 0:04:45]} 6. Qc2 {[%clk 0:04:36]} 6... cxd4 {[%clk 0:04:41.6]} 7.
Nxd4 {[%clk 0:04:33]} 7... Nc6 {[%clk 0:04:36.9]} 8. Nxc6 {[%clk 0:04:29.4]}
8... bxc6 {[%clk 0:04:36.8]} 9. Be2 {[%clk 0:04:25.9]} 9... Rb8 {[%clk
0:04:29.8]} 10. b4 {[%clk 0:04:20.7]} 10... a5 {[%clk 0:04:27.3]} 11. a3 {[%clk
0:04:19.2]} 11... axb4 {[%clk 0:04:19.4]} 12. axb4 {[%clk 0:04:17.3]} 12... O-O
{[%clk 0:04:12.6]} 13. O-O {[%clk 0:04:13.8]} 13... d5 {[%clk 0:04:06.2]} 14.
Nd2 {[%clk 0:04:00.3]} 14... Re8 {[%clk 0:04:00.7]} 15. Nf3 {[%clk 0:03:56.5]}
15... Ne4 {[%clk 0:03:53.5]} 16. Bxe7 {[%clk 0:03:53.4]} 16... Rxe7 {[%clk
0:03:53.4]} 17. Nd4 {[%clk 0:03:40.2]} 17... c5 {[%clk 0:03:48.9]} 18. bxc5
{[%clk 0:03:36.5]} 18... Qxc5 {[%clk 0:03:43.3]} 19. Rfc1 {[%clk 0:03:26.3]}
19... Reb7 {[%clk 0:03:37.9]} 20. f3 {[%clk 0:03:21.4]} 20... Rb2 {[%clk
0:03:31.7]} 21. Qd3 {[%clk 0:03:14.4]} 21... Nd6 {[%clk 0:03:13.2]} 22. h3
{[%clk 0:02:54.4]} 22... Nc4 {[%clk 0:03:01.9]} 23. Kh2 {[%clk 0:02:39.9]} 23...
g6 {[%clk 0:02:58.8]} 24. f4 {[%clk 0:02:29.6]} 24... Qc7 {[%clk 0:02:36.3]} 25.
Rc2 {[%clk 0:02:03.8]} 25... e5 {[%clk 0:02:28.7]} 26. Rxb2 {[%clk 0:01:52.8]}
26... Nxb2 {[%clk 0:02:28.6]} 27. Qc2 {[%clk 0:01:27.7]} 27... exd4 {[%clk
0:02:24.3]} 28. exd4 {[%clk 0:01:24.8]} 28... Qxf4+ {[%clk 0:02:20.2]} 29. Kh1
{[%clk 0:01:21.7]} 29... Bf5 {[%clk 0:02:17.9]} 30. Qc1 {[%clk 0:00:50.3]} 30...
Qg3 {[%clk 0:02:07.2]} 31. Bg4 {[%clk 0:00:20.6]} 31... Be4 {[%clk 0:02:01.6]}
32. Qg1 {[%clk 0:00:17.4]} 32... Nd3 {[%clk 0:01:58.3]} 33. Rf1 {[%clk
0:00:07.2]} 33... Rb1 {[%clk 0:01:47.8]} 34. Qh2 {[%clk 0:00:03.3]} 34... Rxf1+
{[%clk 0:01:44.6]} 0-1

[Event "Live Chess"]
[Site "Chess.com"]
[Date "2023.05.20"]
[Round "-"]
[White "PantherCal"]
[Black "Reggie016"]
[Result "1-0"]
[WhiteElo "1814"]
[BlackElo "1116"]
[TimeControl "300"]
[EndTime "11:32:49 PDT"]
[Termination "PantherCal won by resignation"]

1. e4 {[%clk 0:04:57.3]} 1... e6 {[%clk 0:04:59.6]} 2. d4 {[%clk 0:04:56.1]}
2... d5 {[%clk 0:04:59.3]} 3. exd5 {[%clk 0:04:56]} 3... exd5 {[%clk 0:04:57.6]}
4. Bd3 {[%clk 0:04:55.9]} 4... c5 {[%clk 0:04:57.3]} 5. Nf3 {[%clk 0:04:55.8]}
5... c4 {[%clk 0:04:51.5]} 6. Be2 {[%clk 0:04:54.7]} 6... Nc6 {[%clk 0:04:50.9]}
7. b3 {[%clk 0:04:54]} 7... b5 {[%clk 0:04:43.3]} 8. a4 {[%clk 0:04:52.8]} 8...
Bb4+ {[%clk 0:04:28.6]} 9. Bd2 {[%clk 0:04:51.4]} 9... bxa4 {[%clk 0:04:11.1]}
10. Rxa4 {[%clk 0:04:46.4]} 10... Bxd2+ {[%clk 0:04:05.4]} 11. Qxd2 {[%clk
0:04:46.3]} 11... cxb3 {[%clk 0:03:50.5]} 12. Bb5 {[%clk 0:04:43.8]} 12... Bd7
{[%clk 0:03:43.3]} 13. O-O {[%clk 0:04:42.1]} 13... bxc2 {[%clk 0:03:35.5]} 14.
Qxc2 {[%clk 0:04:41.1]} 14... Rc8 {[%clk 0:03:27.4]} 15. Re1+ {[%clk 0:04:40]}
15... Nge7 {[%clk 0:03:25.8]} 16. Qa2 {[%clk 0:03:54.3]} 16... O-O {[%clk
0:03:21.9]} 17. Bxc6 {[%clk 0:03:48.4]} 17... Bxc6 {[%clk 0:03:09.5]} 18. Rxa7
{[%clk 0:03:46.9]} 18... Qb6 {[%clk 0:02:59.1]} 19. Raxe7 {[%clk 0:03:38.3]} 1-0

[Event "Live Chess"]
[Site "Chess.com"]
[Date "2023.05.20"]
[Round "-"]
[White "flyingpuffins"]
[Black "raminguy"]
[Result "0-1"]
[WhiteElo "1968"]
[BlackElo "1978"]
[TimeControl "300"]
[EndTime "11:32:52 PDT"]
[Termination "raminguy won by resignation"]

1. e4 {[%clk 0:04:58.6]} 1... e5 {[%clk 0:04:59.2]} 2. Nc3 {[%clk 0:04:57.4]}
2... Nc6 {[%clk 0:04:59.1]} 3. Bc4 {[%clk 0:04:55.3]} 3... Nf6 {[%clk
0:04:58.1]} 4. d3 {[%clk 0:04:54.4]} 4... Na5 {[%clk 0:04:57.3]} 5. Bb3 {[%clk
0:04:52.7]} 5... Nxb3 {[%clk 0:04:56]} 6. axb3 {[%clk 0:04:52.6]} 6... a6 {[%clk
0:04:54.4]} 7. Nge2 {[%clk 0:04:51.5]} 7... Bc5 {[%clk 0:04:53.4]} 8. O-O {[%clk
0:04:50.3]} 8... h6 {[%clk 0:04:52]} 9. d4 {[%clk 0:04:48.5]} 9... exd4 {[%clk
0:04:48.9]} 10. Nxd4 {[%clk 0:04:47.4]} 10... d6 {[%clk 0:04:46.2]} 11. Be3
{[%clk 0:04:46.1]} 11... O-O {[%clk 0:04:42.3]} 12. h3 {[%clk 0:04:44.7]} 12...
Re8 {[%clk 0:04:40.3]} 13. f3 {[%clk 0:04:31.2]} 13... d5 {[%clk 0:04:35.3]} 14.
exd5 {[%clk 0:04:22.8]} 14... Rxe3 {[%clk 0:04:33.5]} 0-1

[Event "Live Chess"]
[Site "Chess.com"]
[Date "2023.05.20"]
[Round "-"]
[White "HoarseyHorsey"]
[Black "onemoretime1975"]
[Result "0-1"]
[WhiteElo "1370"]
[BlackElo "1919"]
[TimeControl "300"]
[EndTime "11:33:02 PDT"]
[Termination "onemoretime1975 won by resignation"]

1. d4 {[%clk 0:04:59]} 1... d5 {[%clk 0:04:57.7]} 2. c4 {[%clk 0:04:58.3]} 2...
e6 {[%clk 0:04:56.4]} 3. Nc3 {[%clk 0:04:56.9]} 3... Nf6 {[%clk 0:04:55.1]} 4.
cxd5 {[%clk 0:04:56.2]} 4... exd5 {[%clk 0:04:53.7]} 5. Bg5 {[%clk 0:04:54.5]}
5... c6 {[%clk 0:04:49.3]} 6. e3 {[%clk 0:04:52.1]} 6... Be7 {[%clk 0:04:46.4]}
7. Nf3 {[%clk 0:04:50.8]} 7... Bf5 {[%clk 0:04:44.1]} 8. Bd3 {[%clk 0:04:48.9]}
8... Bxd3 {[%clk 0:04:41.4]} 9. Qxd3 {[%clk 0:04:47.7]} 9... Nbd7 {[%clk
0:04:40.6]} 10. O-O {[%clk 0:04:46.3]} 10... O-O {[%clk 0:04:38.5]} 11. Rfe1
{[%clk 0:04:45.1]} 11... h6 {[%clk 0:04:31.8]} 12. Bh4 {[%clk 0:04:42.4]} 12...
Re8 {[%clk 0:04:27.1]} 13. e4 {[%clk 0:04:39.2]} 13... dxe4 {[%clk 0:04:25.2]}
14. Nxe4 {[%clk 0:04:36.8]} 14... Nxe4 {[%clk 0:04:23.3]} 15. Rxe4 {[%clk
0:04:29.8]} 15... Bxh4 {[%clk 0:04:21]} 16. Rxh4 {[%clk 0:04:15.2]} 16... Qf6
{[%clk 0:04:17.5]} 17. Re4 {[%clk 0:04:07.2]} 17... Qd6 {[%clk 0:04:05.3]} 18.
Rae1 {[%clk 0:04:03.5]} 18... Nf6 {[%clk 0:04:03.9]} 19. Rxe8+ {[%clk
0:04:00.4]} 19... Rxe8 {[%clk 0:04:01.7]} 20. Rxe8+ {[%clk 0:03:59.3]} 20...
Nxe8 {[%clk 0:04:00.1]} 21. Qc4 {[%clk 0:03:45.5]} 21... Nf6 {[%clk 0:03:52.7]}
22. Ne5 {[%clk 0:03:42.1]} 22... Nd5 {[%clk 0:03:45.1]} 23. g3 {[%clk
0:03:31.5]} 23... f6 {[%clk 0:03:42.3]} 24. Nf3 {[%clk 0:03:29.7]} 24... Qe6
{[%clk 0:03:36.2]} 25. Kf1 {[%clk 0:03:22.2]} 25... Ne3+ {[%clk 0:03:31.4]} 26.
fxe3 {[%clk 0:03:20.7]} 26... Qxc4+ {[%clk 0:03:30.3]} 0-1

[Event "Live Chess"]
[Site "Chess.com"]
[Date "2023.05.20"]
[Round "-"]
[White "bedsdrout"]
[Black "Ocelot32"]
[Result "0-1"]
[WhiteElo "378"]
[BlackElo "1428"]
[TimeControl "300"]
[EndTime "11:33:08 PDT"]
[Termination "Ocelot32 won by checkmate"]

1. e4 {[%clk 0:04:57.7]} 1... e6 {[%clk 0:04:57.9]} 2. Bc4 {[%clk 0:04:48.2]}
2... d5 {[%clk 0:04:55.6]} 3. Bb3 {[%clk 0:04:45]} 3... dxe4 {[%clk 0:04:52.8]}
4. Qh5 {[%clk 0:04:40.5]} 4... Nf6 {[%clk 0:04:49.4]} 5. Qh4 {[%clk 0:04:35.9]}
5... Be7 {[%clk 0:04:46.3]} 6. d3 {[%clk 0:04:25.8]} 6... exd3 {[%clk
0:04:39.7]} 7. Bg5 {[%clk 0:04:21.7]} 7... dxc2 {[%clk 0:04:31.6]} 8. Nd2 {[%clk
0:04:12.9]} 8... Nbd7 {[%clk 0:04:11.4]} 9. Bxf6 {[%clk 0:04:09.3]} 9... Nxf6
{[%clk 0:04:06.5]} 10. Ne4 {[%clk 0:03:59.5]} 10... Nxe4 {[%clk 0:04:01.8]} 11.
Qh5 {[%clk 0:03:56.2]} 11... Qd2+ {[%clk 0:03:58]} 12. Kf1 {[%clk 0:03:39.7]}
12... Qxf2# {[%clk 0:03:56]} 0-1

[Event "Live Chess"]
[Site "Chess.com"]
[Date "2023.05.20"]
[Round "-"]
[White "BostonStrangler"]
[Black "zdanevych"]
[Result "1-0"]
[WhiteElo "2048"]
[BlackElo "1526"]
[TimeControl "300"]
[EndTime "11:33:16 PDT"]
[Termination "BostonStrangler won by resignation"]

1. Nf3 {[%clk 0:04:58.4]} 1... d5 {[%clk 0:04:58.5]} 2. g3 {[%clk 0:04:57.4]}
2... c5 {[%clk 0:04:57.8]} 3. Bg2 {[%clk 0:04:57]} 3... Nc6 {[%clk 0:04:57.3]}
4. O-O {[%clk 0:04:56.1]} 4... e5 {[%clk 0:04:56.6]} 5. d3 {[%clk 0:04:55.3]}
5... h6 {[%clk 0:04:55.2]} 6. c4 {[%clk 0:04:54.4]} 6... d4 {[%clk 0:04:52.9]}
7. b4 {[%clk 0:04:52.3]} 7... Nf6 {[%clk 0:04:49.5]} 8. b5 {[%clk 0:04:49.8]}
8... Ne7 {[%clk 0:04:45]} 9. Nxe5 {[%clk 0:04:48.7]} 9... Be6 {[%clk 0:04:43.4]}
10. Bxb7 {[%clk 0:04:43.9]} 10... Rb8 {[%clk 0:04:42.5]} 11. Bg2 {[%clk
0:04:42.3]} 11... g6 {[%clk 0:04:38]} 12. Nc6 {[%clk 0:04:41]} 12... Bg7 {[%clk
0:04:34.5]} 13. Nxd8 {[%clk 0:04:39.1]} 1-0

[Event "Live Chess"]
[Site "Chess.com"]
[Date "2023.05.20"]
[Round "-"]
[White "hturner40"]
[Black "Bob2pen"]
[Result "0-1"]
[WhiteElo "1813"]
[BlackElo "1769"]
[TimeControl "300"]
[EndTime "11:33:21 PDT"]
[Termination "Bob2pen won by resignation"]

1. Nf3 {[%clk 0:04:55.4]} 1... Nf6 {[%clk 0:04:58.3]} 2. g3 {[%clk 0:04:53.6]}
2... g6 {[%clk 0:04:56.7]} 3. Bg2 {[%clk 0:04:52.6]} 3... Bg7 {[%clk 0:04:55.6]}
4. O-O {[%clk 0:04:52.1]} 4... O-O {[%clk 0:04:54.5]} 5. Re1 {[%clk 0:04:49.8]}
5... d5 {[%clk 0:04:52.8]} 6. d3 {[%clk 0:04:47.7]} 6... c5 {[%clk 0:04:51]} 7.
Nbd2 {[%clk 0:04:43.9]} 7... Nc6 {[%clk 0:04:49.4]} 8. e4 {[%clk 0:04:42.8]}
8... dxe4 {[%clk 0:04:46.9]} 9. Nxe4 {[%clk 0:04:40.6]} 9... Nxe4 {[%clk
0:04:45.7]} 10. Rxe4 {[%clk 0:04:37.7]} 10... Bf5 {[%clk 0:04:43.5]} 11. Re1
{[%clk 0:04:35]} 11... Re8 {[%clk 0:04:35.7]} 12. Nh4 {[%clk 0:04:27.2]} 12...
Be6 {[%clk 0:04:30.4]} 13. Rb1 {[%clk 0:04:01.1]} 13... Bxa2 {[%clk 0:04:17]}
14. Ra1 {[%clk 0:03:57.4]} 14... Bd5 {[%clk 0:04:13.8]} 15. c3 {[%clk
0:03:45.9]} 15... Bxg2 {[%clk 0:04:10.6]} 16. Nxg2 {[%clk 0:03:42.7]} 16... b6
{[%clk 0:04:08.4]} 17. Bg5 {[%clk 0:03:13.7]} 17... Ne5 {[%clk 0:04:02.6]} 18.
d4 {[%clk 0:03:02.7]} 18... cxd4 {[%clk 0:03:58.6]} 19. cxd4 {[%clk 0:03:00.9]}
19... Qxd4 {[%clk 0:03:43.2]} 20. Qxd4 {[%clk 0:02:40.5]} 20... Nf3+ {[%clk
0:03:40.5]} 21. Kh1 {[%clk 0:02:32.9]} 21... Bxd4 {[%clk 0:03:32.7]} 22. Red1
{[%clk 0:02:08.9]} 22... Bxb2 {[%clk 0:03:23.7]} 23. Ra2 {[%clk 0:02:00.6]}
23... Bf6 {[%clk 0:03:18]} 24. Bh6 {[%clk 0:01:53.7]} 24... Red8 {[%clk
0:03:11]} 25. Rf1 {[%clk 0:01:33.7]} 25... a5 {[%clk 0:03:04.4]} 26. Nh4 {[%clk
0:01:29.1]} 26... Nxh4 {[%clk 0:02:59.6]} 27. gxh4 {[%clk 0:01:27.5]} 27... b5
{[%clk 0:02:58.5]} 28. Bf4 {[%clk 0:00:58.7]} 28... a4 {[%clk 0:02:52]} 0-1

[Event "Live Chess"]
[Site "Chess.com"]
[Date "2023.05.20"]
[Round "-"]
[White "ReceptiveCamel"]
[Black "wadsy27"]
[Result "0-1"]
[WhiteElo "626"]
[BlackElo "2589"]
[TimeControl "300"]
[EndTime "11:33:23 PDT"]
[Termination "wadsy27 won by checkmate"]

1. e4 {[%clk 0:04:55]} 1... e6 {[%clk 0:04:58]} 2. d4 {[%clk 0:04:49.1]} 2... d5
{[%clk 0:04:57.9]} 3. e5 {[%clk 0:04:47.6]} 3... c5 {[%clk 0:04:56.5]} 4. dxc5
{[%clk 0:04:46]} 4... Nc6 {[%clk 0:04:54.1]} 5. Bb5 {[%clk 0:04:44.6]} 5... Bxc5
{[%clk 0:04:47.4]} 6. Bxc6+ {[%clk 0:04:41.9]} 6... bxc6 {[%clk 0:04:46.2]} 7.
Nf3 {[%clk 0:04:40.1]} 7... Ne7 {[%clk 0:04:43.2]} 8. Bg5 {[%clk 0:04:37.3]}
8... h6 {[%clk 0:04:40.8]} 9. Bxe7 {[%clk 0:04:35.6]} 9... Qxe7 {[%clk
0:04:38.2]} 10. Nbd2 {[%clk 0:04:34.6]} 10... Ba6 {[%clk 0:04:36.8]} 11. Qc1
{[%clk 0:04:29.7]} 11... g5 {[%clk 0:04:34.1]} 12. c3 {[%clk 0:04:28.8]} 12...
g4 {[%clk 0:04:33.3]} 13. Nd4 {[%clk 0:04:25.2]} 13... Qg5 {[%clk 0:04:15]} 14.
h4 {[%clk 0:04:20.7]} 14... Qxe5+ {[%clk 0:04:12.6]} 15. Kd1 {[%clk 0:04:15.1]}
15... Bxd4 {[%clk 0:04:09.6]} 16. cxd4 {[%clk 0:04:13.2]} 16... Qe2+ {[%clk
0:04:08.4]} 17. Kc2 {[%clk 0:04:09.9]} 17... c5 {[%clk 0:03:53.7]} 18. dxc5
{[%clk 0:04:07.6]} 18... Rc8 {[%clk 0:03:51]} 19. b4 {[%clk 0:04:02.7]} 19... d4
{[%clk 0:03:45.2]} 20. Re1 {[%clk 0:03:59]} 20... Qxf2 {[%clk 0:03:40.6]} 21.
Rg1 {[%clk 0:03:50.6]} 21... O-O {[%clk 0:03:26.8]} 22. Qf1 {[%clk 0:03:47.9]}
22... Bxf1 {[%clk 0:03:24.3]} 23. Rgxf1 {[%clk 0:03:45.4]} 23... Qxg2 {[%clk
0:03:22.2]} 24. Rg1 {[%clk 0:03:40.7]} 24... d3+ {[%clk 0:03:21.2]} 25. Kxd3
{[%clk 0:03:39]} 25... Rfd8+ {[%clk 0:03:20.4]} 26. Kc2 {[%clk 0:03:37.9]} 26...
Qxd2+ {[%clk 0:03:19.8]} 27. Kb3 {[%clk 0:03:36.9]} 27... Rd3+ {[%clk
0:03:18.8]} 28. Ka4 {[%clk 0:03:35.8]} 28... Rb8 {[%clk 0:03:16.4]} 29. Rxg4+
{[%clk 0:03:33.4]} 29... Kf8 {[%clk 0:03:14.1]} 30. b5 {[%clk 0:03:31.1]} 30...
Qc2+ {[%clk 0:03:10.7]} 31. Ka5 {[%clk 0:03:29.5]} 31... Ra3+ {[%clk 0:03:08.9]}
32. Kb4 {[%clk 0:03:27.9]} 32... Qa4# {[%clk 0:03:07.7]} 0-1

[Event "Live Chess"]
[Site "Chess.com"]
[Date "2023.05.20"]
[Round "-"]
[White "diana21strabt"]
[Black "Rusty_Bridges"]
[Result "0-1"]
[WhiteElo "1692"]
[BlackElo "1420"]
[TimeControl "300"]
[EndTime "11:33:27 PDT"]
[Termination "Rusty_Bridges won by checkmate"]

1. e4 {[%clk 0:04:57.8]} 1... d6 {[%clk 0:04:57.4]} 2. d4 {[%clk 0:04:54.3]}
2... Nf6 {[%clk 0:04:55.4]} 3. Nc3 {[%clk 0:04:52.8]} 3... Nbd7 {[%clk
0:04:54.5]} 4. Nf3 {[%clk 0:04:51.6]} 4... e5 {[%clk 0:04:50.6]} 5. dxe5 {[%clk
0:04:46.7]} 5... dxe5 {[%clk 0:04:50.5]} 6. Bb5 {[%clk 0:04:43.9]} 6... c6
{[%clk 0:04:49]} 7. Bc4 {[%clk 0:04:42.8]} 7... h6 {[%clk 0:04:46.8]} 8. O-O
{[%clk 0:04:41.3]} 8... Qc7 {[%clk 0:04:45.3]} 9. Re1 {[%clk 0:04:37.9]} 9...
Bc5 {[%clk 0:04:41.9]} 10. Be3 {[%clk 0:04:33.6]} 10... Bb6 {[%clk 0:04:29.4]}
11. a4 {[%clk 0:04:31.4]} 11... O-O {[%clk 0:04:20.1]} 12. b4 {[%clk 0:04:27.4]}
12... Bxe3 {[%clk 0:04:14.7]} 13. Rxe3 {[%clk 0:04:26.2]} 13... Ng4 {[%clk
0:04:08.8]} 14. Rd3 {[%clk 0:04:22.9]} 14... Nb6 {[%clk 0:04:02.8]} 15. Bb3
{[%clk 0:04:19.9]} 15... Be6 {[%clk 0:03:46.3]} 16. h3 {[%clk 0:04:17.2]} 16...
Bxb3 {[%clk 0:03:40.6]} 17. hxg4 {[%clk 0:04:12.5]} 17... Bc4 {[%clk 0:03:36.5]}
18. Rd2 {[%clk 0:04:09]} 18... Rad8 {[%clk 0:03:21.3]} 19. a5 {[%clk 0:04:07.1]}
19... Nc8 {[%clk 0:03:15.1]} 20. Qe1 {[%clk 0:03:30.8]} 20... Ne7 {[%clk
0:02:46.2]} 21. Rad1 {[%clk 0:03:16.2]} 21... Ng6 {[%clk 0:02:26.3]} 22. Rxd8
{[%clk 0:02:59.4]} 22... Rxd8 {[%clk 0:02:23.3]} 23. Nd2 {[%clk 0:02:54.8]}
23... Be6 {[%clk 0:02:17]} 24. g5 {[%clk 0:02:37.3]} 24... hxg5 {[%clk
0:02:09.7]} 25. Nf3 {[%clk 0:02:35.9]} 25... Bg4 {[%clk 0:02:02.3]} 26. Rxd8+
{[%clk 0:02:33.4]} 26... Qxd8 {[%clk 0:02:00.5]} 27. Qe3 {[%clk 0:02:23.2]}
27... Bxf3 {[%clk 0:01:56.8]} 28. Qxf3 {[%clk 0:02:21.8]} 28... Nf4 {[%clk
0:01:52.5]} 29. g3 {[%clk 0:02:01.2]} 29... Ne6 {[%clk 0:01:49.3]} 30. Kg2
{[%clk 0:01:56.6]} 30... Qd4 {[%clk 0:01:45]} 31. Na2 {[%clk 0:01:40.4]} 31...
Qc4 {[%clk 0:01:41]} 32. Nc1 {[%clk 0:01:17.7]} 32... Qxc2 {[%clk 0:01:38.5]}
33. Nd3 {[%clk 0:01:16.6]} 33... Qc3 {[%clk 0:01:29.2]} 34. Qe3 {[%clk
0:01:04.7]} 34... Qd4 {[%clk 0:01:25.5]} 35. Qf3 {[%clk 0:00:58.9]} 35... b6
{[%clk 0:01:20.3]} 36. axb6 {[%clk 0:00:57]} 36... axb6 {[%clk 0:01:19]} 37. Kf1
{[%clk 0:00:52.5]} 37... c5 {[%clk 0:01:15]} 38. bxc5 {[%clk 0:00:51]} 38...
bxc5 {[%clk 0:01:13.9]} 39. Kg2 {[%clk 0:00:49.7]} 39... c4 {[%clk 0:01:12.2]}
40. Nc1 {[%clk 0:00:48.7]} 40... Nc5 {[%clk 0:00:55.8]} 41. Ne2 {[%clk
0:00:47.6]} 41... Qxe4 {[%clk 0:00:53.4]} 42. Qxe4 {[%clk 0:00:46.1]} 42... Nxe4
{[%clk 0:00:52.4]} 43. Kf3 {[%clk 0:00:45.4]} 43... Nd6 {[%clk 0:00:50.2]} 44.
Nc3 {[%clk 0:00:44]} 44... f6 {[%clk 0:00:48.7]} 45. Kg4 {[%clk 0:00:42.8]}
45... Kf7 {[%clk 0:00:46.9]} 46. f3 {[%clk 0:00:41.2]} 46... Ke6 {[%clk
0:00:44.5]} 47. f4 {[%clk 0:00:39.2]} 47... exf4 {[%clk 0:00:41.9]} 48. gxf4
{[%clk 0:00:38.3]} 48... gxf4 {[%clk 0:00:40.5]} 49. Kxf4 {[%clk 0:00:37.8]}
49... g5+ {[%clk 0:00:38.7]} 50. Kg4 {[%clk 0:00:36.7]} 50... Ke5 {[%clk
0:00:30.1]} 51. Nb5 {[%clk 0:00:33.9]} 51... Nxb5 {[%clk 0:00:28]} 52. Kf3
{[%clk 0:00:32.8]} 52... c3 {[%clk 0:00:27.9]} 53. Ke2 {[%clk 0:00:31.7]} 53...
Kd4 {[%clk 0:00:26.6]} 54. Kd1 {[%clk 0:00:30.6]} 54... g4 {[%clk 0:00:26.2]}
55. Kc2 {[%clk 0:00:29.5]} 55... g3 {[%clk 0:00:25.7]} 56. Kd1 {[%clk
0:00:28.5]} 56... g2 {[%clk 0:00:25.6]} 57. Kc2 {[%clk 0:00:27.4]} 57... g1=Q
{[%clk 0:00:23.6]} 58. Kb3 {[%clk 0:00:26.6]} 58... Qe3 {[%clk 0:00:22.1]} 59.
Kc2 {[%clk 0:00:25.5]} 59... Na3+ {[%clk 0:00:20.3]} 60. Kb3 {[%clk 0:00:24.2]}
60... c2+ {[%clk 0:00:20.2]} 61. Kb4 {[%clk 0:00:23.3]} 61... c1=Q {[%clk
0:00:18.6]} 62. Ka4 {[%clk 0:00:21]} 62... Nb1 {[%clk 0:00:17.6]} 63. Kb5 {[%clk
0:00:19.4]} 63... Qcc3 {[%clk 0:00:15.8]} 64. Ka4 {[%clk 0:00:18.3]} 64... Qec1
{[%clk 0:00:15]} 65. Kb5 {[%clk 0:00:16.9]} 65... Q1b2+ {[%clk 0:00:14.8]} 66.
Ka6 {[%clk 0:00:15.9]} 66... Qca3# {[%clk 0:00:14.7]} 0-1

[Event "Live Chess"]
[Site "Chess.com"]
[Date "2023.05.20"]
[Round "-"]
[White "TobyQuaite"]
[Black "WelshTiger"]
[Result "0-1"]
[WhiteElo "1694"]
[BlackElo "2431"]
[TimeControl "300"]
[EndTime "11:33:58 PDT"]
[Termination "WelshTiger won by resignation"]

1. e4 {[%clk 0:04:59.2]} 1... c5 {[%clk 0:04:58.9]} 2. Nf3 {[%clk 0:04:57.7]}
2... d6 {[%clk 0:04:58.1]} 3. d4 {[%clk 0:04:56.3]} 3... cxd4 {[%clk 0:04:57.6]}
4. Nxd4 {[%clk 0:04:56.2]} 4... Nf6 {[%clk 0:04:56.8]} 5. Nc3 {[%clk 0:04:55.8]}
5... Nc6 {[%clk 0:04:56.3]} 6. Bb5 {[%clk 0:04:52.1]} 6... Bd7 {[%clk
0:04:55.2]} 7. O-O {[%clk 0:04:49.6]} 7... e5 {[%clk 0:04:52.8]} 8. Nf5 {[%clk
0:04:45]} 8... Bxf5 {[%clk 0:04:49.9]} 9. exf5 {[%clk 0:04:44.9]} 9... Be7
{[%clk 0:04:48.1]} 10. Nd5 {[%clk 0:04:41.2]} 10... O-O {[%clk 0:04:34.2]} 11.
Nxe7+ {[%clk 0:04:30.9]} 11... Qxe7 {[%clk 0:04:34.1]} 12. Bg5 {[%clk
0:04:26.5]} 12... Nd4 {[%clk 0:04:30.9]} 13. Bd3 {[%clk 0:04:22.3]} 13... h6
{[%clk 0:04:18.2]} 14. Bxf6 {[%clk 0:04:16.2]} 14... Qxf6 {[%clk 0:04:16]} 15.
c3 {[%clk 0:04:15.7]} 15... Nxf5 {[%clk 0:04:14.9]} 16. Qf3 {[%clk 0:04:11.3]}
16... Nh4 {[%clk 0:04:04.7]} 17. Qxb7 {[%clk 0:03:58.4]} 17... Rae8 {[%clk
0:04:00.3]} 18. f4 {[%clk 0:03:42.9]} 18... exf4 {[%clk 0:03:55.4]} 19. g3
{[%clk 0:03:34.9]} 19... Qg5 {[%clk 0:03:42.3]} 20. Rxf4 {[%clk 0:03:27.7]}
20... Ng6 {[%clk 0:03:38.2]} 21. Bxg6 {[%clk 0:03:19.9]} 21... Qxg6 {[%clk
0:03:38.1]} 22. Qg2 {[%clk 0:03:11.8]} 22... Re5 {[%clk 0:03:34.4]} 23. Rd1
{[%clk 0:03:05.1]} 23... Rfe8 {[%clk 0:03:32.5]} 24. h3 {[%clk 0:02:24.9]} 24...
Re2 {[%clk 0:03:20.4]} 25. Rf2 {[%clk 0:02:08.6]} 25... R2e3 {[%clk 0:03:18.3]}
26. g4 {[%clk 0:02:03]} 26... R8e6 {[%clk 0:03:05.9]} 27. Rdf1 {[%clk
0:01:55.6]} 27... f6 {[%clk 0:02:59.7]} 28. Qd5 {[%clk 0:01:44.6]} 28... Kh8
{[%clk 0:02:54.5]} 29. Qf5 {[%clk 0:01:38.5]} 29... Qe8 {[%clk 0:02:52.2]} 30.
Rf3 {[%clk 0:01:34.1]} 30... Re2 {[%clk 0:02:50.9]} 31. R3f2 {[%clk 0:01:31.2]}
31... R2e5 {[%clk 0:02:49.3]} 32. Qc2 {[%clk 0:01:24.5]} 32... Qc6 {[%clk
0:02:47.8]} 33. Qd2 {[%clk 0:01:10.6]} 33... Re3 {[%clk 0:02:45.6]} 34. Kh2
{[%clk 0:00:59.9]} 34... Qc5 {[%clk 0:02:30.5]} 35. Qd4 {[%clk 0:00:41.7]} 35...
Qg5 {[%clk 0:02:29.2]} 36. Rf3 {[%clk 0:00:33.6]} 36... R3e4 {[%clk 0:02:25.5]}
37. Qxa7 {[%clk 0:00:24.5]} 37... Qh4 {[%clk 0:02:21.9]} 38. Qf2 {[%clk
0:00:17.8]} 38... Re2 {[%clk 0:02:21.1]} 0-1

[Event "Live Chess"]
[Site "Chess.com"]
[Date "2023.05.20"]
[Round "-"]
[White "Ayursworld"]
[Black "Tilbs_12"]
[Result "1-0"]
[WhiteElo "1349"]
[BlackElo "1565"]
[TimeControl "300"]
[EndTime "11:33:59 PDT"]
[Termination "Ayursworld won by resignation"]

1. e4 {[%clk 0:04:59.2]} 1... c6 {[%clk 0:04:58.4]} 2. Nf3 {[%clk 0:04:57.5]}
2... d5 {[%clk 0:04:57.5]} 3. exd5 {[%clk 0:04:55.9]} 3... cxd5 {[%clk
0:04:56.8]} 4. d4 {[%clk 0:04:55.1]} 4... Nc6 {[%clk 0:04:56.3]} 5. Nc3 {[%clk
0:04:54]} 5... Bg4 {[%clk 0:04:55.2]} 6. Bf4 {[%clk 0:04:52.7]} 6... e6 {[%clk
0:04:51.8]} 7. Be2 {[%clk 0:04:51]} 7... Nge7 {[%clk 0:04:50.3]} 8. Nb5 {[%clk
0:04:48.6]} 8... Qa5+ {[%clk 0:04:05.2]} 9. c3 {[%clk 0:04:39.7]} 9... O-O-O
{[%clk 0:03:55.3]} 10. Nd6+ {[%clk 0:04:35.9]} 10... Kb8 {[%clk 0:03:52.8]} 11.
Nxf7+ {[%clk 0:04:32]} 1-0